[Event "ESTCC 50 2019"]
[Site "Mali Losinj"]
[Date "2019.09.18"]
[Round "1.1"]
[White "Burmakin, Vladimir"]
[Black "Druckenthaner, Andreas"]
[Result "1-0"]
[ECO "A41"]
[WhiteElo "2496"]
[BlackElo "2283"]
[Annotator "ChessBase"]
[PlyCount "117"]
[EventDate "2019.09.18"]
[EventType "team-tourn"]
[EventCountry "CRO"]
[SourceTitle "playchess.com"]
[Source "ChessBase"]
[SourceQuality "1"]
[WhiteTeam "Russia"]
[BlackTeam "Austria"]
[WhiteTeamCountry "RUS"]
[BlackTeamCountry "AUT"]
[TimeControl "40/5400+30:1800+30"]

1. Nf3 g6 2. d4 Bg7 3. g3 d6 4. Bg2 Nc6 5. d5 Ne5 6. O-O Nxf3+ 7. exf3 Nf6 8. f4 O-O 9. Be3 Bd7 10. c4 c5 11. dxc6 Bxc6 12. Nc3 Bxg2 13. Kxg2 Qd7 14. b3 a6 15. a4 Rac8 16. Rc1 Rfe8 17. Qf3 Qc6 18. Rfd1 Ng4 19. Nd5 Nxe3+ 20. Nxe3 Kf8 21. Rc2 e6 22. Rcd2 Red8 23. g4 Ke7 24. Re2 Kf8 25. f5 Be5 26. h4 Kg7 27. Rd3 h6 28. Qxc6 bxc6 29. fxe6 fxe6 30. Nf1 c5 31. Nd2 Kf7 32. Rf3+ Ke7 33. Rfe3 Rc6 34. f4 Bxf4 35. Rxe6+ Kf7 36. Re7+ Kf8 37. Rh7 Kg8 38. Rb7 Be5 39. Nf3 Re8 40. a5 Rcc8 41. Nxe5 h5 42. Rd2 Rxe5 43. Rxd6 Rf8 44. Rxg6+ Kh8 45. gxh5 Rxh5 46. Kh3 Rf3+ 47. Rg3 Rf4 48. Rg4 Rf3+ 49. Kg2 Rhf5 50. Re4 Rf8 51. Re5 Rf2+ 52. Kg3 Rf1 53. Rxc5 Rg1+ 54. Kh2 Rgf1 55. Kh3 Rh1+ 56. Kg4 Rg1+ 57. Kh5 Rh1 58. b4 Rg8 59. Rcc7 1-0

[Event "ESTCC 50 2019"]
[Site "Mali Losinj"]
[Date "2019.09.18"]
[Round "1.2"]
[White "Opl, Klaus"]
[Black "Shcherbakov, Ruslan"]
[Result "0-1"]
[ECO "B97"]
[WhiteElo "2207"]
[BlackElo "2516"]
[Annotator "ChessBase"]
[PlyCount "114"]
[EventDate "2019.09.18"]
[EventType "team-tourn"]
[EventCountry "CRO"]
[SourceTitle "playchess.com"]
[Source "ChessBase"]
[SourceQuality "1"]
[WhiteTeam "Austria"]
[BlackTeam "Russia"]
[WhiteTeamCountry "AUT"]
[BlackTeamCountry "RUS"]
[TimeControl "40/5400+30:1800+30"]

1. e4 c5 2. Nf3 d6 3. d4 cxd4 4. Nxd4 Nf6 5. Nc3 a6 6. Bg5 e6 7. f4 Qb6 8. Qd2 Nc6 9. O-O-O Qxd4 10. Qxd4 Nxd4 11. Rxd4 Nd7 12. Be2 Rb8 13. a4 b6 14. Bh4 Bb7 15. f5 Ne5 16. Rhd1 Bc8 17. Bg3 Be7 18. Rxd6 Bxd6 19. Rxd6 f6 20. fxe6 Ke7 21. Bxe5 fxe5 22. Rc6 Bxe6 23. Bxa6 Rhd8 24. b3 Rd6 25. Rc7+ Rd7 26. Rc6 Rd6 27. Rc7+ Rd7 28. Rc6 Rd4 29. Bd3 Rd6 30. Rc7+ Rd7 31. Rxd7+ Kxd7 32. Kd2 Kd6 33. b4 Rc8 34. Ba6 Rd8 35. Ke3 Kc6 36. Ne2 Rd1 37. Bb5+ Kc7 38. Bd3 Rb1 39. c3 Ra1 40. Bb5 Bb3 41. Kd2 Bxa4 42. Bc4 Rh1 43. Ke3 Rxh2 44. Kf2 Bc6 45. Ng3 Rh4 46. Kf3 h5 47. Bd3 Rf4+ 48. Ke3 g6 49. Ne2 Rf1 50. c4 Kd6 51. Nc3 Rg1 52. b5 Bb7 53. Kf2 Rc1 54. Na4 Kc7 55. Ke3 h4 56. Nb2 Rg1 57. Kf2 Ra1 0-1

[Event "ESTCC 50 2019"]
[Site "Mali Losinj"]
[Date "2019.09.18"]
[Round "1.3"]
[White "Yakovich, Yuri"]
[Black "Watzka, Horst"]
[Result "1-0"]
[ECO "E14"]
[WhiteElo "2518"]
[BlackElo "2187"]
[Annotator "ChessBase"]
[PlyCount "71"]
[EventDate "2019.09.18"]
[EventType "team-tourn"]
[EventCountry "CRO"]
[SourceTitle "playchess.com"]
[Source "ChessBase"]
[SourceQuality "1"]
[WhiteTeam "Russia"]
[BlackTeam "Austria"]
[WhiteTeamCountry "RUS"]
[BlackTeamCountry "AUT"]
[TimeControl "40/5400+30:1800+30"]

1. d4 Nf6 2. c4 e6 3. Nf3 Bb4+ 4. Nbd2 b6 5. a3 Bxd2+ 6. Qxd2 Bb7 7. e3 O-O 8. Be2 d6 9. O-O Nbd7 10. b4 Qe7 11. Bb2 Ne4 12. Qc2 f5 13. Rad1 Rae8 14. d5 e5 15. Nd2 Nxd2 16. Qxd2 Bc8 17. Rde1 Nf6 18. f3 Qf7 19. Bd3 Nh5 20. f4 exf4 21. exf4 Rxe1 22. Rxe1 Nf6 23. h3 Bd7 24. Bd4 Re8 25. Rxe8+ Nxe8 26. Qc2 Kf8 27. Kh2 h6 28. Kg1 a6 29. a4 Bc8 30. a5 bxa5 31. bxa5 Qd7 32. c5 dxc5 33. Bxc5+ Kg8 34. Qe2 Nf6 35. Qe6+ Qxe6 36. dxe6 1-0

[Event "ESTCC 50 2019"]
[Site "Mali Losinj"]
[Date "2019.09.18"]
[Round "1.4"]
[White "Ernst, Michael"]
[Black "Ibragimov, Ildar"]
[Result "0-1"]
[ECO "D40"]
[WhiteElo "2199"]
[BlackElo "2537"]
[Annotator "ChessBase"]
[PlyCount "66"]
[EventDate "2019.09.18"]
[EventType "team-tourn"]
[EventCountry "CRO"]
[SourceTitle "playchess.com"]
[Source "ChessBase"]
[SourceQuality "1"]
[WhiteTeam "Austria"]
[BlackTeam "Russia"]
[WhiteTeamCountry "AUT"]
[BlackTeamCountry "RUS"]
[TimeControl "40/5400+30:1800+30"]

1. d4 c5 2. e3 e6 3. Nf3 Nf6 4. c4 a6 5. Nc3 d5 6. cxd5 exd5 7. dxc5 Bxc5 8. Be2 O-O 9. O-O Nc6 10. a3 Ba7 11. b4 Bg4 12. Bb2 Qd6 13. Nd4 Bb8 14. g3 Bh3 15. Re1 Ne5 16. Nf3 Nc4 17. Qb3 Nxb2 18. Qxb2 Ba7 19. Red1 Rad8 20. Nd4 h5 21. Bf3 Qe5 22. Rac1 h4 23. Bg2 Bg4 24. Rd2 hxg3 25. hxg3 Rd6 26. Nf3 Bxf3 27. Bxf3 Bxe3 28. fxe3 Qxg3+ 29. Bg2 Ng4 30. Nxd5 Rxd5 31. Rxd5 Qh2+ 32. Kf1 Nxe3+ 33. Ke1 Qg1+ 0-1

[Event "ESTCC 50 2019"]
[Site "Mali Losinj"]
[Date "2019.09.18"]
[Round "1.5"]
[White "Krebs, Johann"]
[Black "Kozul, Zdenko"]
[Result "0-1"]
[ECO "E95"]
[WhiteElo "2226"]
[BlackElo "2569"]
[Annotator "ChessBase"]
[PlyCount "66"]
[EventDate "2019.09.18"]
[EventType "team-tourn"]
[EventCountry "CRO"]
[SourceTitle "playchess.com"]
[Source "ChessBase"]
[SourceQuality "1"]
[WhiteTeam "Austria"]
[BlackTeam "Croatia"]
[WhiteTeamCountry "AUT"]
[BlackTeamCountry "CRO"]
[TimeControl "40/5400+30:1800+30"]

1. d4 Nf6 2. c4 g6 3. Nc3 Bg7 4. e4 d6 5. Nf3 O-O 6. Be2 Nbd7 7. O-O e5 8. Re1 h6 9. Bf1 Nh7 10. Be3 f5 11. dxe5 dxe5 12. Qc2 f4 13. Bc1 g5 14. h3 h5 15. Nh2 c6 16. Be2 Ndf6 17. Qd1 g4 18. hxg4 Qxd1 19. Rxd1 hxg4 20. b3 Ng5 21. Ba3 Re8 22. f3 g3 23. Nf1 Bf8 24. Bd6 Bxd6 25. Rxd6 Kg7 26. c5 Be6 27. Rdd1 Rh8 28. Nd2 Rh2 29. Bc4 Rah8 30. Kf1 Bh3 31. gxh3 Rf2+ 32. Ke1 Rxh3 33. Rdc1 Rh1+ 0-1

[Event "ESTCC 50 2019"]
[Site "Mali Losinj"]
[Date "2019.09.18"]
[Round "1.6"]
[White "Zelcic, Robert"]
[Black "Wegerer, Fred"]
[Result "1-0"]
[ECO "B15"]
[WhiteElo "2503"]
[BlackElo "2171"]
[Annotator "ChessBase"]
[PlyCount "65"]
[EventDate "2019.09.18"]
[EventType "team-tourn"]
[EventCountry "CRO"]
[SourceTitle "playchess.com"]
[Source "ChessBase"]
[SourceQuality "1"]
[WhiteTeam "Croatia"]
[BlackTeam "Austria"]
[WhiteTeamCountry "CRO"]
[BlackTeamCountry "AUT"]
[TimeControl "40/5400+30:1800+30"]

1. e4 c6 2. d4 d5 3. Nc3 g6 4. Nf3 Bg7 5. Bf4 dxe4 6. Nxe4 Nd7 7. Qe2 Qa5+ 8. c3 Ngf6 9. Nd6+ Kf8 10. Nc4 Qd8 11. g3 Nb6 12. Nce5 Nfd5 13. Bd2 f6 14. Nd3 Nc4 15. Bc1 Nd6 16. Bg2 Bg4 17. O-O h5 18. Nc5 Nc7 19. Re1 b6 20. Nd3 g5 21. h3 Bd7 22. h4 Bg4 23. hxg5 Ne6 24. gxf6 exf6 25. Qf1 Bh6 26. Nh4 Kf7 27. Bxh6 Rxh6 28. f3 Bf5 29. Nxf5 Nxf5 30. Rxe6 Kxe6 31. Bh3 Qd7 32. Bxf5+ Kxf5 33. Qh3+ 1-0

[Event "ESTCC 50 2019"]
[Site "Mali Losinj"]
[Date "2019.09.18"]
[Round "1.7"]
[White "Kainz, Josef"]
[Black "Kurajica, Bojan"]
[Result "0-1"]
[ECO "A50"]
[WhiteElo "1922"]
[BlackElo "2493"]
[Annotator "ChessBase"]
[PlyCount "58"]
[EventDate "2019.09.18"]
[EventType "team-tourn"]
[EventCountry "CRO"]
[SourceTitle "playchess.com"]
[Source "ChessBase"]
[SourceQuality "1"]
[WhiteTeam "Austria"]
[BlackTeam "Croatia"]
[WhiteTeamCountry "AUT"]
[BlackTeamCountry "CRO"]
[TimeControl "40/5400+30:1800+30"]

1. d4 Nf6 2. c4 b6 3. Nf3 Bb7 4. Nbd2 e6 5. g3 c5 6. Nb3 Qc7 7. Bg2 cxd4 8. Bf4 Bb4+ 9. Nfd2 d6 10. Bxb7 Qxb7 11. O-O e5 12. Bg5 Nfd7 13. Nf3 d5 14. Bd2 Bxd2 15. Nbxd2 O-O 16. b4 a5 17. a3 axb4 18. axb4 Rxa1 19. Qxa1 dxc4 20. Nxc4 Qd5 21. Rc1 Nc6 22. Qb2 Re8 23. b5 Nd8 24. Qa3 Nb7 25. Qa7 Rc8 26. Rd1 Rxc4 27. Nxe5 Qxe5 28. Qxb7 Rc7 29. f4 Qe3+ 0-1

[Event "ESTCC 50 2019"]
[Site "Mali Losinj"]
[Date "2019.09.18"]
[Round "1.8"]
[White "Fercec, Nenad"]
[Black "Detter, Peter"]
[Result "1-0"]
[ECO "B04"]
[WhiteElo "2439"]
[BlackElo "1982"]
[Annotator "NA"]
[PlyCount "111"]
[EventDate "2019.09.18"]
[EventType "team-tourn"]
[EventCountry "CRO"]
[SourceTitle "playchess.com"]
[Source "ChessBase"]
[SourceQuality "1"]
[WhiteTeam "Croatia"]
[BlackTeam "Austria"]
[WhiteTeamCountry "CRO"]
[BlackTeamCountry "AUT"]
[TimeControl "40/5400+30:1800+30"]

1. e4 Nf6 2. e5 Nd5 3. d4 d6 4. Nf3 g6 5. Bc4 Nb6 6. Bb3 Bg7 7. Ng5 e6 8. Qf3 Qe7 9. Ne4 dxe5 10. Bg5 Qb4+ 11. c3 Qa5 12. Bf6 O-O 13. Bxg7 Kxg7 14. Qf6+ Kg8 15. Qxe5 Qxe5 16. dxe5 Nc6 17. f4 Na5 18. Nbd2 Nxb3 19. axb3 Bd7 20. Nf6+ Kg7 21. Nxd7 Nxd7 22. Ne4 Rfd8 23. O-O-O Kf8 24. Rd3 Ke7 25. Rhd1 Nf8 26. g4 Rxd3 27. Rxd3 Rd8 28. Rh3 Rd5 29. b4 a5 30. bxa5 Rxa5 31. Kb1 Rd5 32. Kc2 Ra5 33. Rd3 Ra1 34. Rd1 Rxd1 35. Kxd1 h5 36. gxh5 gxh5 37. Ke2 Nd7 38. Kf3 f6 39. exf6+ Nxf6 40. Ng3 Kd6 41. Ne4+ Ke7 42. c4 b6 43. Nxf6 Kxf6 44. Ke4 h4 45. h3 c6 46. b4 c5 47. b5 Kf7 48. Ke5 Ke7 49. f5 exf5 50. Kxf5 Kd6 51. Kf6 Kd7 52. Kg5 Ke6 53. Kxh4 Ke5 54. Kg3 Kd4 55. h4 Kxc4 56. h5 1-0

[Event "ESTCC 50 2019"]
[Site "Mali Losinj"]
[Date "2019.09.18"]
[Round "1.9"]
[White "Mikhalchishin, Adrian"]
[Black "Fox, Anthony"]
[Result "1/2-1/2"]
[ECO "D58"]
[WhiteElo "2465"]
[BlackElo "2023"]
[Annotator "ChessBase"]
[PlyCount "62"]
[EventDate "2019.09.18"]
[EventType "team-tourn"]
[EventCountry "CRO"]
[SourceTitle "playchess.com"]
[Source "ChessBase"]
[SourceQuality "1"]
[WhiteTeam "Slovenia"]
[BlackTeam "Ireland"]
[WhiteTeamCountry "SLO"]
[BlackTeamCountry "IRL"]
[TimeControl "40/5400+30:1800+30"]

1. d4 d5 2. c4 e6 3. Nc3 Nf6 4. Bg5 Be7 5. Nf3 O-O 6. e3 h6 7. Bh4 b6 8. Be2 Bb7 9. Bxf6 Bxf6 10. cxd5 exd5 11. b4 c6 12. O-O Re8 13. Qb3 a5 14. a4 axb4 15. Qxb4 Ra5 16. Rab1 Nd7 17. Rfd1 Be7 18. Qb3 Bd6 19. g3 Ba6 20. Bxa6 Rxa6 21. Kg2 Nf6 22. Qc2 g6 23. Nd2 Qa8 24. Re1 Re6 25. Qd3 c5 26. f3 cxd4 27. exd4 Rxe1 28. Rxe1 Bb4 29. Rb1 Bxc3 30. Qxc3 Rxa4 31. Rxb6 Ra6 1/2-1/2

[Event "ESTCC 50 2019"]
[Site "Mali Losinj"]
[Date "2019.09.18"]
[Round "1.10"]
[White "Cafolla, Peter"]
[Black "Mohr, Georg"]
[Result "0-1"]
[ECO "B25"]
[WhiteElo "1919"]
[BlackElo "2445"]
[Annotator "NA"]
[PlyCount "70"]
[EventDate "2019.09.18"]
[EventType "team-tourn"]
[EventCountry "CRO"]
[SourceTitle "playchess.com"]
[Source "ChessBase"]
[SourceQuality "1"]
[WhiteTeam "Ireland"]
[BlackTeam "Slovenia"]
[WhiteTeamCountry "IRL"]
[BlackTeamCountry "SLO"]
[TimeControl "40/5400+30:1800+30"]

1. e4 c5 2. Nc3 g6 3. g3 Bg7 4. Bg2 Nc6 5. d3 d6 6. f4 e6 7. Nf3 Nge7 8. O-O d5 9. Bd2 Rb8 10. Rb1 b5 11. g4 h5 12. h3 hxg4 13. hxg4 Nd4 14. Ne2 dxe4 15. dxe4 Bb7 16. Ng3 Nec6 17. g5 Nxf3+ 18. Bxf3 b4 19. f5 Be5 20. Kg2 Qc7 21. Rh1 Rxh1 22. Nxh1 exf5 23. c3 Ne7 24. Qe1 fxe4 25. Bxe4 bxc3 26. bxc3 Bxe4+ 27. Qxe4 Rxb1 28. Qxb1 Qd7 29. Qe1 Qg4+ 30. Kf1 Qf5+ 31. Kg2 Kd7 32. Nf2 Nd5 33. Qf1 Nxc3 34. Qc4 Bd4 35. Be1 Qd5+ 0-1

[Event "ESTCC 50 2019"]
[Site "Mali Losinj"]
[Date "2019.09.18"]
[Round "1.11"]
[White "Mencinger, Vojko"]
[Black "Lyons, Brendan"]
[Result "1-0"]
[ECO "B01"]
[WhiteElo "2332"]
[BlackElo "1971"]
[Annotator "NA"]
[PlyCount "39"]
[EventDate "2019.09.18"]
[EventType "team-tourn"]
[EventCountry "CRO"]
[SourceTitle "playchess.com"]
[Source "ChessBase"]
[SourceQuality "1"]
[WhiteTeam "Slovenia"]
[BlackTeam "Ireland"]
[WhiteTeamCountry "SLO"]
[BlackTeamCountry "IRL"]
[TimeControl "40/5400+30:1800+30"]

1. e4 d5 2. exd5 Qxd5 3. Nc3 Qd6 4. d4 Nf6 5. Nf3 c6 6. g3 Bg4 7. Bg2 Nbd7 8. O-O O-O-O 9. Bf4 Bxf3 10. Qxf3 Qxd4 11. Rfd1 Qc5 12. Qd3 e5 13. Be3 Qa5 14. a3 Be7 15. b4 Qc7 16. Qc4 Rhf8 17. Bxa7 Nb6 18. Bh3+ Nfd7 19. Bxb6 Qxb6 20. Nd5 1-0

[Event "ESTCC 50 2019"]
[Site "Mali Losinj"]
[Date "2019.09.18"]
[Round "1.12"]
[White "Salter, David"]
[Black "Plesec, Damjan"]
[Result "0-1"]
[ECO "D05"]
[WhiteElo "1882"]
[BlackElo "2216"]
[Annotator "NA"]
[PlyCount "88"]
[EventDate "2019.09.18"]
[EventType "team-tourn"]
[EventCountry "CRO"]
[SourceTitle "playchess.com"]
[Source "ChessBase"]
[SourceQuality "1"]
[WhiteTeam "Ireland"]
[BlackTeam "Slovenia"]
[WhiteTeamCountry "IRL"]
[BlackTeamCountry "SLO"]
[TimeControl "40/5400+30:1800+30"]

1. d4 e6 2. Nf3 d5 3. e3 Nd7 4. Bd3 Ngf6 5. Nbd2 c5 6. b3 Qc7 7. Bb2 Bd6 8. O-O O-O 9. c4 cxd4 10. exd4 dxc4 11. Nxc4 Be7 12. Rc1 Qd8 13. Nfe5 Nb6 14. Ne3 Nbd5 15. Qf3 Bd7 16. Nxd5 exd5 17. Rc2 Be6 18. Bc1 Qb6 19. Be3 Rfc8 20. Rfc1 Rxc2 21. Rxc2 Rc8 22. Qd1 Rxc2 23. Qxc2 Bd6 24. h3 Qc7 25. Qxc7 Bxc7 26. f3 Ne8 27. Bb5 Nd6 28. Bd7 Nf5 29. Bxe6 fxe6 30. Kf2 Bb6 31. Nd7 Bxd4 32. Bxd4 Nxd4 33. Ke3 Nf5+ 34. Kf4 Kf7 35. g4 Nh4 36. Ke3 Ke7 37. Nc5 b6 38. Nd3 g5 39. Ne5 a6 40. Nc6+ Ke8 41. Nb4 a5 42. Nc6 Ng6 43. Nd4 Kd7 44. Ne2 e5 0-1

[Event "ESTCC 50 2019"]
[Site "Mali Losinj"]
[Date "2019.09.18"]
[Round "1.13"]
[White "Burchardt, Brigitte"]
[Black "Blatny, Pavel"]
[Result "0-1"]
[ECO "B00"]
[WhiteElo "2092"]
[BlackElo "2325"]
[Annotator "NA"]
[PlyCount "72"]
[EventDate "2019.09.18"]
[EventType "team-tourn"]
[EventCountry "CRO"]
[SourceTitle "playchess.com"]
[Source "ChessBase"]
[SourceQuality "1"]
[WhiteTeam "Germany"]
[BlackTeam "Czech Republic"]
[WhiteTeamCountry "GER"]
[BlackTeamCountry "CZE"]
[TimeControl "40/5400+30:1800+30"]

1. e4 {[%emt 0:00:30]} e6 {[%emt 0:00:30]} 2. d4 {[%emt 0:02:30]} b6 {[%emt 0:00:30]} 3. Be3 {[%emt 0:03:30]} Bb7 {[%emt 0:00:30]} 4. f3 {[%emt 0:00:30]} d5 {[%emt 0:02:30]} 5. exd5 {[%emt 0:01:30]} exd5 {[%emt 0:00:30]} 6. Bd3 {[%emt 0:01:30]} Bd6 {[%emt 0:00:00]} 7. Ne2 {[%emt 0:04:30]} Ne7 {[%emt 0:00:00]} 8. Bf4 {[%emt 0:08:30]} Bxf4 {[%emt 0:00:30]} 9. Nxf4 {[%emt 0:00:00]} Qd6 {[%emt 0:00:00]} 10. Qd2 {[%emt 0:00:00]} Ng6 {[%emt 0:03:00]} 11. Ne2 {[%emt 0:04:30]} Nc6 {[%emt 0:02:30]} 12. c3 {[%emt 0:00:30]} O-O {[%emt 0:02:30]} 13. Na3 {[%emt 0:02:30]} Rae8 {[%emt 0:00:00]} 14. O-O-O {[%emt 0:04:30]} Nh4 {[%emt 0:06:00]} 15. Qg5 {[%emt 0:14:30]} Qd8 {[%emt 0:02:30]} 16. Qxd8 {[%emt 0:02:30]} Nxd8 {[%emt 0:00:30]} 17. Rhg1 {[%emt 0:01:30]} c6 {[%emt 0:00:30]} 18. Nc2 {[%emt 0:05:30]} Bc8 {[%emt 0:00:30]} 19. Kd2 {[%emt 0:07:30]} f5 {[%emt 0:06:30]} 20. f4 {[%emt 0:01:30]} Nf7 {[%emt 0:00:30]} 21. Rdf1 {[%emt 0:09:30]} Nd6 {[%emt 0:00:30]} 22. g3 {[%emt 0:00:00]} Ng6 {[%emt 0:00:30]} 23. Re1 {[%emt 0:01:00]} Be6 {[%emt 0:04:30]} 24. Rgf1 {[%emt 0:01:30]} a5 {[%emt 0:17:30]} 25. a3 {[%emt 0:03:15]} c5 {[%emt 0:08:30]} 26. Ne3 {[%emt 0:02:17]} Ne7 {[%emt 0:01:30]} 27. Rc1 {[%emt 0:04:46]} Nc6 {[%emt 0:01:30]} 28. Rfe1 {[%emt 0:02:49]} Rd8 {[%emt 0:01:30]} 29. Red1 {[%emt 0:04:09]} Rf7 {[%emt 0:02:30]} 30. Ke1 {[%emt 0:01:05]} Re7 {[%emt 0:00:30]} 31. Kf2 {[%emt 0:00:19]} Rde8 {[%emt 0:00:30]} 32. Rd2 {[%emt 0:00:17]} Nb8 {[%emt 0:04:30]} 33. Bb1 {[%emt 0:01:21]} Nd7 {[%emt 0:00:30]} 34. Ng1 {[%emt 0:02:39]} Nf6 {[%emt 0:00:00]} 35. Re2 {[%emt 0:00:13]} Bd7 {[%emt 0:00:00]} 36. Bd3 {[%emt 0:01:45]} Rxe3 {[%emt 0:00:30]} 0-1

[Event "ESTCC 50 2019"]
[Site "Mali Losinj"]
[Date "2019.09.18"]
[Round "1.14"]
[White "Vokac, Marek"]
[Black "Wagner-Michel, Annett"]
[Result "1-0"]
[ECO "D53"]
[WhiteElo "2332"]
[BlackElo "2055"]
[Annotator "NA"]
[PlyCount "71"]
[EventDate "2019.09.18"]
[EventType "team-tourn"]
[EventCountry "CRO"]
[SourceTitle "playchess.com"]
[Source "ChessBase"]
[SourceQuality "1"]
[WhiteTeam "Czech Republic"]
[BlackTeam "Germany"]
[WhiteTeamCountry "CZE"]
[BlackTeamCountry "GER"]
[TimeControl "40/5400+30:1800+30"]

1. d4 {[%emt 0:00:30]} d5 {[%emt 0:00:30]} 2. c4 {[%emt 0:00:00]} e6 {[%emt 0:00:00]} 3. Nc3 {[%emt 0:00:00]} Nf6 {[%emt 0:00:00]} 4. Bg5 {[%emt 0:00:30]} Be7 {[%emt 0:00:30]} 5. e3 {[%emt 0:00:30]} h6 {[%emt 0:00:30]} 6. Bf4 {[%emt 0:01:30]} O-O {[%emt 0:00:30]} 7. h3 {[%emt 0:00:00]} a6 {[%emt 0:02:30]} 8. Nf3 {[%emt 0:01:00]} dxc4 {[%emt 0:05:30]} 9. Bxc4 {[%emt 0:00:00]} b5 {[%emt 0:03:30]} 10. Bb3 {[%emt 0:02:00]} Bb7 {[%emt 0:04:30]} 11. O-O {[%emt 0:00:30]} Nbd7 {[%emt 0:01:30]} 12. Qe2 {[%emt 0:06:30]} c5 {[%emt 0:11:30]} 13. Rfd1 {[%emt 0:05:30]} Qb6 {[%emt 0:07:30]} 14. a4 {[%emt 0:16:30]} c4 {[%emt 0:03:30]} 15. Bc2 {[%emt 0:00:30]} b4 {[%emt 0:01:30]} 16. a5 {[%emt 0:00:30]} Qc6 {[%emt 0:15:30]} 17. Ba4 {[%emt 0:03:30]} Qc8 {[%emt 0:00:30]} 18. Nb1 {[%emt 0:01:30]} Bxf3 {[%emt 0:10:30]} 19. Qxf3 {[%emt 0:01:30]} Nd5 {[%emt 0:02:30]} 20. Rc1 {[%emt 0:07:30]} N7f6 {[%emt 0:03:30]} 21. Be5 {[%emt 0:04:30]} c3 {[%emt 0:07:43]} 22. bxc3 {[%emt 0:02:30]} Nxc3 {[%emt 0:01:42]} 23. Nxc3 {[%emt 0:03:30]} bxc3 {[%emt 0:00:10]} 24. Bc6 {[%emt 0:04:30]} Ra7 {[%emt 0:02:14]} 25. Rxc3 {[%emt 0:01:30]} Nd7 {[%emt 0:01:19]} 26. Bg3 {[%emt 0:02:30]} Nb8 {[%emt 0:05:42]} 27. Rb1 {[%emt 0:04:30]} Nxc6 {[%emt 0:01:32]} 28. Qxc6 {[%emt 0:01:30]} Qa8 {[%emt 0:01:32]} 29. Qxa8 {[%emt 0:16:48]} Raxa8 {[%emt 0:00:36]} 30. Rb7 {[%emt 0:00:53]} Bd8 {[%emt 0:02:13]} 31. Bd6 {[%emt 0:00:10]} Bxa5 {[%emt 0:00:41]} 32. Ra3 {[%emt 0:00:59]} Rfd8 {[%emt 0:00:02]} 33. Bc5 {[%emt 0:00:24]} Bd2 {[%emt 0:00:21]} 34. Ra2 {[%emt 0:00:43]} Rac8 {[%emt 0:00:33]} 35. Be7 {[%emt 0:01:56]} Rd5 {[%emt 0:01:32]} 36. Rxd2 {[%emt 0:00:08]} 1-0

[Event "ESTCC 50 2019"]
[Site "Mali Losinj"]
[Date "2019.09.18"]
[Round "1.15"]
[White "Kierzek, Mira"]
[Black "Konopka, Michal"]
[Result "0-1"]
[ECO "D78"]
[WhiteElo "2015"]
[BlackElo "2351"]
[Annotator "NA"]
[PlyCount "58"]
[EventDate "2019.09.18"]
[EventType "team-tourn"]
[EventCountry "CRO"]
[SourceTitle "playchess.com"]
[Source "ChessBase"]
[SourceQuality "1"]
[WhiteTeam "Germany"]
[BlackTeam "Czech Republic"]
[WhiteTeamCountry "GER"]
[BlackTeamCountry "CZE"]
[TimeControl "40/5400+30:1800+30"]

1. d4 {[%emt 0:00:30]} Nf6 {[%emt 0:00:30]} 2. Nf3 {[%emt 0:00:30]} g6 {[%emt 0:00:30]} 3. g3 {[%emt 0:02:30]} Bg7 {[%emt 0:00:00]} 4. Bg2 {[%emt 0:00:30]} d5 {[%emt 0:01:00]} 5. O-O {[%emt 0:02:30]} O-O {[%emt 0:02:30]} 6. c4 {[%emt 0:04:30]} dxc4 {[%emt 0:00:30]} 7. Nc3 {[%emt 0:02:30]} c6 {[%emt 0:05:30]} 8. Ne5 {[%emt 0:04:30]} Ne8 {[%emt 0:01:30]} 9. Bf4 {[%emt 0:09:30]} Nd6 {[%emt 0:04:30]} 10. Qc2 {[%emt 0:19:30]} Be6 {[%emt 0:17:30]} 11. Rfd1 {[%emt 0:07:30]} Nd7 {[%emt 0:00:30]} 12. Nxd7 {[%emt 0:07:30]} Qxd7 {[%emt 0:00:30]} 13. e4 {[%emt 0:02:30]} Bh3 {[%emt 0:28:30]} 14. Bh1 {[%emt 0:01:30]} Rac8 {[%emt 0:01:30]} 15. Be3 {[%emt 0:07:30]} b5 {[%emt 0:08:30]} 16. Rac1 {[%emt 0:06:32]} f5 {[%emt 0:01:30]} 17. e5 {[%emt 0:01:12]} f4 {[%emt 0:00:00]} 18. exd6 {[%emt 0:04:01]} fxe3 {[%emt 0:00:00]} 19. fxe3 {[%emt 0:02:39]} Bh6 {[%emt 0:02:30]} 20. Re1 {[%emt 0:00:47]} exd6 {[%emt 0:00:30]} 21. Rcd1 {[%emt 0:02:44]} d5 {[%emt 0:01:30]} 22. e4 {[%emt 0:01:49]} dxe4 {[%emt 0:05:45]} 23. Bxe4 {[%emt 0:01:40]} Bg4 {[%emt 0:00:46]} 24. Ne2 {[%emt 0:00:48]} Rce8 {[%emt 0:01:47]} 25. Bg2 {[%emt 0:03:15]} Be3+ {[%emt 0:00:45]} 26. Kh1 {[%emt 0:00:08]} Rf2 {[%emt 0:00:21]} 27. d5 {[%emt 0:00:34]} Rxg2 {[%emt 0:01:09]} 28. Kxg2 {[%emt 0:00:26]} Bh3+ {[%emt 0:00:33]} 29. Kh1 {[%emt 0:00:17]} Bf5 {[%emt 0:00:06]} 0-1